fUST/lending_fUST_20240423
["ID","MTS","AMOUNT","RATE_DAILY","PERIOD"]
[323314886,1713886241753,-500.0,0.00019452,2]
[323314888,1713886241762,-500.0,0.00019452,2]
[323314890,1713886241771,-608.2,0.00019452,2]
[323314892,1713886241780,-922.51,0.00019452,2]
[323314894,1713886241790,-500.0,0.00019452,2]
[323314896,1713886241799,-500.0,0.00019452,2]
[323314898,1713886241809,-6463.7,0.00019452,2]
[323314900,1713886241818,-500.0,0.00019452,2]
[323314902,1713886241827,-944.94,0.00019452,2]
[323314904,1713886241837,-500.0,0.00019452,2]
[323314906,1713886241846,-500.0,0.00019452,2]
[323314908,1713886241855,-1823.03,0.00019452,2]
[323314910,1713886241864,-618.72,0.00019452,2]
[323314912,1713886241873,-500.0,0.00019452,2]
[323314914,1713886241883,-500.0,0.00019452,2]
[323314916,1713886241892,-5801.32,0.00019452,2]
[323314918,1713886241901,-500.0,0.00019452,2]
[323314920,1713886241911,-771.55,0.00019452,2]
[323314922,1713886241920,-500.0,0.00019452,2]
[323314924,1713886241929,-19674.56,0.00019452,2]
[323314926,1713886241941,-500.0,0.00019452,2]
[323314928,1713886241950,-3292.02,0.00019452,2]
[323314930,1713886241960,-388.55794728,0.00019452,2]
[323314932,1713886241969,-500.0,0.00019452,2]
[323314934,1713886241979,-909.24,0.00019452,2]
[323314936,1713886241989,-1207.85,0.00019452,2]
[323314938,1713886241999,-500.0,0.00019452,2]
[323314940,1713886242008,-423.47435075,0.00019452,2]
[323314942,1713886242018,-3067.93,0.00019452,2]
[323314944,1713886242030,-500.0,0.00019452,2]
[323314946,1713886242038,-500.0,0.00019452,2]
[323314948,1713886242048,-504.87,0.00019452,2]
[323314950,1713886242057,-500.0,0.00019452,2]
[323314952,1713886242066,-608.87,0.00019452,2]
[323314954,1713886242076,-556.58,0.00019452,2]
[323314956,1713886242085,-500.0,0.00019452,2]
[323314957,1713886242094,-500.0,0.00019452,2]
[323314958,1713886242104,-3723.77,0.00019452,2]
[323314959,1713886242113,-500.0,0.00019452,2]
[323314960,1713886242122,-1648.21,0.00019452,2]
[323314961,1713886242131,-500.0,0.00019452,2]
[323314962,1713886242140,-500.0,0.00019452,2]
[323314963,1713886242149,-500.0,0.00019452,2]
[323314964,1713886242157,-500.0,0.00019452,2]
[323314965,1713886242166,-6180.36,0.00019452,2]
[323314966,1713886242175,-500.0,0.00019452,2]
[323314967,1713886242183,-361.08025354,0.00019452,2]
[323314968,1713886242193,-613.16,0.00019452,2]
[323314969,1713886242202,-707.77,0.00019452,2]
[323314970,1713886242211,-500.0,0.00019452,2]
[323314971,1713886242220,-500.0,0.00019452,2]
[323314972,1713886242228,-500.0,0.00019452,2]
[323314973,1713886242237,-903.3,0.00019452,2]
[323314974,1713886242246,-500.0,0.00019452,2]
[323314975,1713886242255,-500.0,0.00019452,2]
[323314976,1713886242264,-500.0,0.00019452,2]
[323314977,1713886242273,-501.11,0.00019452,2]
[323314978,1713886242281,-500.0,0.00019452,2]
[323314979,1713886242290,-3150.19,0.00019452,2]
[323314980,1713886242300,-500.0,0.00019452,2]
[323314981,1713886242309,-823.0,0.00019515,2]
[323314982,1713886242319,-361.75151942,0.00019723,2]
[323314983,1713886242328,-154.84515485,0.00019723,2]
[323314985,1713886242339,-439.24201302,0.00019723,2]
[323314987,1713886242348,-250.75982324,0.00019723,2]
[323314989,1713886242358,-356.40304323,0.00019723,2]
[323314991,1713886242367,-500.0,0.00019723,2]
[323314993,1713886242376,-500.0,0.00019724,2]
[323314995,1713886242385,-500.0,0.00019724,2]
[323314997,1713886242394,-500.0,0.00019724,2]
[323314999,1713886242403,-5220.57,0.00019724,2]
[323315001,1713886242413,-500.0,0.00019724,2]
[323315003,1713886242421,-500.0,0.00019724,2]
[323315005,1713886242431,-500.0,0.00019724,2]
[323315007,1713886242441,-500.0,0.00019725,2]
[323315009,1713886242451,-500.0,0.00019725,2]
[323315011,1713886242460,-500.0,0.00019725,2]
[323315013,1713886242470,-500.0,0.00019725,2]
[323315015,1713886242479,-603.63,0.00019725,2]
[323315017,1713886242489,-500.0,0.00019725,2]
[323315019,1713886242498,-500.0,0.00019725,2]
[323315021,1713886242507,-500.0,0.00019725,2]
[323315023,1713886242516,-500.0,0.00019725,2]
[323315025,1713886242526,-500.0,0.00019725,2]
[323315027,1713886242535,-500.0,0.00019725,2]
[323315029,1713886242544,-500.0,0.00019725,2]
[323315031,1713886242553,-398.72465794,0.00019725,2]
[323315033,1713886242563,-500.0,0.00019725,2]
[323315035,1713886242572,-500.0,0.00019725,2]
[323315037,1713886242581,-500.0,0.00019725,2]
[323315039,1713886242590,-500.0,0.00019725,2]
[323315041,1713886242599,-500.0,0.00019725,2]
[323315043,1713886242608,-500.0,0.00019725,2]
[323315046,1713886242618,-500.0,0.00019725,2]
[323315049,1713886242627,-500.0,0.00019725,2]
[323315052,1713886242636,-500.0,0.00019725,2]
[323315055,1713886242645,-500.0,0.00019725,2]
[323315057,1713886242658,-500.0,0.00019725,2]
[323315059,1713886242667,-500.0,0.00019725,2]
[323315061,1713886242676,-500.0,0.00019725,2]
[323315063,1713886242685,-500.0,0.00019725,2]
[323315065,1713886242696,-247.45506757,0.00019725,2]
[323315067,1713886242705,-500.0,0.00019725,2]
[323315069,1713886242714,-500.0,0.00019725,2]
[323315071,1713886242725,-1248.42,0.00019725,2]
[323315073,1713886242734,-500.0,0.00019725,2]
[323315075,1713886242743,-500.0,0.00019725,2]
[323315077,1713886242752,-500.0,0.00019725,2]
[323315079,1713886242762,-500.0,0.00019725,2]
[323315081,1713886242771,-919.14,0.00019725,2]
[323315083,1713886242780,-500.0,0.00019725,2]
[323315085,1713886242789,-500.0,0.00019725,2]
[323315087,1713886242799,-500.0,0.00019725,2]
[323315089,1713886242809,-244.29403611,0.00019725,2]
[323315091,1713886242817,-500.0,0.00019725,2]
[323315093,1713886242827,-500.0,0.00019725,2]
[323315095,1713886242836,-474.95041374,0.00019725,2]
[323315098,1713886242845,-500.0,0.00019725,2]
[323315101,1713886242854,-580.47,0.00019725,2]
[323315103,1713886242863,-500.0,0.00019725,2]
[323315106,1713886242872,-500.0,0.00019725,2]
[323315109,1713886242881,-500.0,0.00019725,2]
[323315112,1713886242890,-500.0,0.00019725,2]
[323315114,1713886242900,-974.63,0.00019725,2]
[323315118,1713886242910,-9.1736,0.00019725,2]
[323315139,1713886243049,-490.8264,0.00019725,2]
[323315141,1713886243061,-320.15853516,0.00019725,2]
[323315172,1713886243339,-500.0,0.00019178,2]
[323315174,1713886243349,-528.3533825,0.00019451,2]
[323315176,1713886243358,-500.0,0.00019452,2]
[323315178,1713886243367,-179.84146484,0.00019725,2]
[323315180,1713886243376,-500.0,0.00019725,2]
[323315182,1713886243385,-500.0,0.00019725,2]
[323315184,1713886243394,-500.0,0.00019725,2]
[323315186,1713886243403,-299.88739424,0.00019725,2]
[323315212,1713886243632,-500.0,0.00019451,2]
[323315216,1713886243642,-200.11260576,0.00019725,2]
[323315219,1713886243650,-500.0,0.00019725,2]
[323315223,1713886243661,-500.0,0.00019725,2]
[323315226,1713886243670,-500.0,0.00019725,2]
[323315228,1713886243679,-515.77253081,0.00019725,2]
[323315230,1713886243688,-673.83291194,0.00019725,2]
[323315513,1713886246237,-500.0,0.00019178,2]
[323315514,1713886246246,-500.0,0.00019178,2]
[323315515,1713886246256,-500.0,0.00019452,2]
[323315516,1713886246265,-126.35708806,0.00019725,2]
[323315517,1713886246274,-2491.27,0.00019725,2]
[323315518,1713886246283,-429.77834674,0.00019725,2]
[323315545,1713886247546,-70.22165326,0.00019725,2]
[323315547,1713886247557,-500.0,0.00019725,2]
[323315549,1713886247566,-500.0,0.00019725,2]
[323315551,1713886247575,-263.67834674,0.00019725,2]
[323315742,1713886405318,1040.25,0.0002,10]
[323315761,1713887149107,-156.68437586,0.00013457,2]
[323315762,1713887156131,-290.19684006,0.00013456,2]
[323315763,1713887278064,-26403.0,0.00025132,30]
[323315764,1713887352114,-157.76351589,0.00013134,2]
[323315765,1713887352134,-1311.74164115,0.00013264,2]
[323315766,1713887352154,-1090.52068603,0.00013265,2]
[323315767,1713887352175,-300.0,0.00013269,2]
[323315768,1713887352195,-300.0,0.00013269,2]
[323315769,1713887352215,-24900.0,0.0001327,2]
[323315770,1713887352235,-360.46222455,0.00013357,2]
[323315771,1713887352254,-1090.69392084,0.00013457,2]
[323315772,1713887352274,-1955.3744156,0.00013681,2]
[323315773,1713887352293,-223.6141705,0.00013699,2]
[323315774,1713887352313,-200.92339208,0.00014312,2]
[323315775,1713887352334,-18018.51456377,0.00014414,2]
[323315776,1713887352358,-4614.43581735,0.00014415,2]
[323315777,1713887352381,-420.0,0.00014547,2]
[323315778,1713887352401,-188.81822926,0.00014562,2]
[323315779,1713887352422,-420.0,0.00014595,2]
[323315780,1713887352442,-13618.02497939,0.00015345,2]
[323315781,1713887356178,-9793.77826641,0.00015345,2]
[323315782,1713887361210,-665.41800615,0.00015191,2]
[323315783,1713887361231,-32218.576333,0.00015345,2]
[323315784,1713887361250,-270.0,0.00015949,2]
[323315785,1713887361271,-587.0,0.00016055,2]
[323315786,1713887361302,-272.57129579,0.000165,2]
[323315787,1713887361330,-823.0,0.0001766,2]
[323315788,1713887361364,-360.46222451,0.00018006,2]
[323315789,1713887361396,-1547.87838862,0.000189,2]
[323315790,1713887361425,-203.50832674,0.00019078,3]
[323315791,1713887361454,-185.17373173,0.00019078,2]
[323315792,1713887361481,-361.75151942,0.00019176,2]
[323315793,1713887361508,-189.19295912,0.00019176,2]
[323315794,1713887361538,-194.13687731,0.00019176,2]
[323315795,1713887361566,-3068.34943758,0.00019177,2]
[323315796,1713887361594,-500.0,0.00019178,2]
[323315797,1713887361626,-500.0,0.00019178,2]
[323315798,1713887361654,-919.14,0.00019178,2]
[323315799,1713887361677,-500.0,0.00019178,2]
[323315800,1713887361703,-1248.42,0.00019178,2]
[323315801,1713887361731,-500.0,0.00019178,2]
[323315802,1713887361757,-500.0,0.00019178,2]
[323315803,1713887361781,-500.0,0.00019178,2]
[323315804,1713887361809,-500.0,0.00019178,2]
[323315805,1713887361834,-500.0,0.00019178,2]
[323315806,1713887361859,-500.0,0.00019178,2]
[323315807,1713887361884,-500.0,0.00019178,2]
[323315808,1713887361908,-500.0,0.00019178,2]
[323315809,1713887361933,-158.26052004,0.00019178,2]
[323315810,1713887361959,-500.0,0.00019178,2]
[323315811,1713887361984,-500.0,0.00019178,2]
[323315812,1713887362009,-553.52659239,0.00019178,2]
[323315813,1713887362034,-484.4036651,0.00019178,2]
[323315814,1713887362059,-500.0,0.00019178,2]
[323315815,1713887362084,-500.0,0.00019178,2]
[323315816,1713887362109,-500.0,0.00019178,2]
[323315817,1713887362134,-580.47,0.00019178,2]
[323315818,1713887362160,-500.0,0.00019178,2]
[323315819,1713887362185,-500.0,0.00019178,2]
[323315820,1713887362209,-500.0,0.00019178,2]
[323315821,1713887362235,-974.63,0.00019178,2]
[323315822,1713887362260,-500.0,0.00019178,2]
[323315823,1713887362285,-500.0,0.00019178,2]
[323315824,1713887362309,-500.0,0.00019178,2]
[323315825,1713887362334,-500.0,0.00019178,2]
[323315826,1713887362362,-500.0,0.00019178,2]
[323315827,1713887362385,-500.0,0.00019178,2]
[323315828,1713887362550,-500.0,0.00019178,2]
[323315829,1713887362578,-500.0,0.00019178,2]
[323315830,1713887362598,-500.0,0.00019178,2]
[323315831,1713887362620,-155.6130199,0.00019178,2]
[323315832,1713887362640,-500.0,0.00019178,2]
[323315833,1713887362661,-500.0,0.00019178,2]
[323315834,1713887362682,-500.0,0.00019178,2]
[323315835,1713887362702,-500.0,0.00019178,2]
[323315836,1713887362722,-500.0,0.00019178,2]
[323315837,1713887362742,-500.0,0.00019178,2]
[323315838,1713887362763,-500.0,0.00019178,2]
[323315839,1713887362783,-500.0,0.00019178,2]
[323315840,1713887362802,-500.0,0.00019178,2]
[323315841,1713887362821,-500.0,0.00019178,2]
[323315842,1713887362842,-500.0,0.00019178,2]
[323315843,1713887362864,-500.0,0.00019178,2]
[323315844,1713887362885,-500.0,0.00019178,2]
[323315845,1713887362904,-500.0,0.00019178,2]
[323315846,1713887362926,-500.0,0.00019178,2]
[323315847,1713887362945,-500.0,0.00019178,2]
[323315848,1713887362966,-500.0,0.00019178,2]
[323315849,1713887362986,-500.0,0.00019178,2]
[323315850,1713887363007,-500.0,0.00019178,2]
[323315851,1713887363028,-500.0,0.00019178,2]
[323315852,1713887363046,-500.0,0.00019178,2]
[323315853,1713887363070,-500.0,0.00019178,2]
[323315854,1713887363092,-500.0,0.00019178,2]
[323315855,1713887363115,-500.0,0.00019178,2]
[323315856,1713887363135,-500.0,0.00019178,2]
[323315857,1713887363155,-500.0,0.00019178,2]
[323315858,1713887363175,-500.0,0.00019178,2]
[323315859,1713887363195,-500.0,0.00019178,2]
[323315860,1713887363216,-766.85,0.00019178,2]
[323315861,1713887363237,-500.0,0.00019178,2]
[323315862,1713887363258,-600.34,0.00019178,2]
[323315863,1713887363278,-1010.95,0.00019178,2]
[323315864,1713887363299,-500.0,0.00019178,2]
[323315865,1713887363319,-254.83873137,0.00019178,2]
[323315866,1713887363339,-500.0,0.00019178,2]
[323315867,1713887363364,-500.0,0.00019178,2]
[323315868,1713887363383,-500.0,0.00019178,2]
[323315869,1713887363404,-500.0,0.00019178,2]
[323315870,1713887363425,-500.0,0.00019178,2]
[323315871,1713887363446,-500.0,0.00019178,2]
[323315872,1713887363467,-500.0,0.00019178,2]
[323315873,1713887363489,-591.47,0.00019178,2]
[323315874,1713887363510,-808.94,0.00019178,2]
[323315875,1713887363530,-500.0,0.00019178,2]
[323315876,1713887363550,-500.0,0.00019178,2]
[323315877,1713887363570,-500.0,0.00019178,2]
[323315878,1713887363591,-500.0,0.00019178,2]
[323315879,1713887363612,-500.0,0.00019178,2]
[323315880,1713887363632,-500.0,0.00019178,2]
[323315881,1713887363655,-505.54,0.00019178,2]
[323315882,1713887363676,-500.0,0.00019178,2]
[323315883,1713887363699,-644.94823493,0.00019178,2]
[323315884,1713887363718,-500.0,0.00019178,2]
[323315885,1713887363738,-500.0,0.00019178,2]
[323315886,1713887363759,-500.0,0.00019178,2]
[323315887,1713887363779,-500.0,0.00019178,2]
[323315888,1713887363813,-502.74587075,0.00019178,2]
[323315889,1713887363841,-500.0,0.00019178,2]
[323315890,1713887363861,-500.78952841,0.00019178,2]
[323315891,1713887363882,-500.0,0.00019178,2]
[323315892,1713887363902,-500.0,0.00019178,2]
[323315893,1713887363923,-500.0,0.00019178,2]
[323315894,1713887363943,-500.0,0.00019178,2]
[323315895,1713887363963,-503.83,0.00019178,2]
[323315896,1713887363983,-559.9,0.00019178,2]
[323315897,1713887364003,-500.0,0.00019178,2]
[323315898,1713887364024,-1309.28,0.00019178,2]
[323315899,1713887364044,-500.0,0.00019178,2]
[323315900,1713887364065,-500.0,0.00019178,2]
[323315901,1713887364084,-500.0,0.00019178,2]
[323315902,1713887364103,-500.0,0.00019178,2]
[323315903,1713887364126,-500.0,0.00019178,2]
[323315904,1713887364146,-500.0,0.00019178,2]
[323315905,1713887364166,-500.0,0.00019178,2]
[323315906,1713887364186,-500.0,0.00019178,2]
[323315907,1713887364207,-500.0,0.00019178,2]
[323315908,1713887364227,-500.0,0.00019178,2]
[323315909,1713887364247,-500.08025782,0.00019178,2]
[323315910,1713887364267,-832.27,0.00019178,2]
[323315911,1713887364286,-500.0,0.00019178,2]
[323315912,1713887364306,-500.0,0.00019178,2]
[323315913,1713887364327,-500.0,0.00019178,2]
[323315914,1713887364350,-500.0,0.00019178,2]
[323315915,1713887364375,-500.0,0.00019178,2]
[323315916,1713887364397,-500.0,0.00019178,2]
[323315917,1713887364417,-500.0,0.00019178,2]
[323315918,1713887364440,-500.0,0.00019178,2]
[323315919,1713887364461,-500.0,0.00019178,2]
[323315920,1713887364482,-500.0,0.00019178,2]
[323315921,1713887364503,-500.0,0.00019178,2]
[323315922,1713887364529,-500.0,0.00019178,2]
[323315923,1713887364550,-500.0,0.00019178,2]
[323315924,1713887364675,-500.0,0.00019178,2]
[323315925,1713887364696,-500.0,0.00019178,2]
[323315926,1713887364716,-500.0,0.00019178,2]
[323315927,1713887364738,-500.0,0.00019178,2]
[323315928,1713887364758,-196.56986936,0.00019178,2]
[323315929,1713887364778,-228.59812908,0.00019178,2]
[323315930,1713887364798,-500.0,0.00019178,2]
[323315931,1713887364818,-500.0,0.00019178,2]
[323315932,1713887364840,-500.0,0.00019178,2]
[323315933,1713887364860,-500.0,0.00019178,2]
[323315934,1713887364883,-500.0,0.00019178,2]
[323315935,1713887364902,-507.17171376,0.00019178,2]
[323315936,1713887364922,-501.68120795,0.00019178,2]
[323315937,1713887364944,-500.0,0.00019178,2]
[323315938,1713887364964,-500.0,0.00019178,2]
[323315939,1713887364985,-1595.71,0.00019178,2]
[323315940,1713887365006,-500.0,0.00019178,2]
[323315941,1713887365026,-500.0,0.00019178,2]
[323315942,1713887365048,-500.0,0.00019178,2]
[323315943,1713887365069,-500.0,0.00019178,2]
[323315944,1713887365090,-500.0,0.00019178,2]
[323315945,1713887365110,-500.0,0.00019178,2]
[323315946,1713887365141,-500.0,0.00019178,2]
[323315947,1713887365162,-572.1,0.00019178,2]
[323315948,1713887365182,-500.0,0.00019178,2]
[323315949,1713887365203,-500.0,0.00019178,2]
[323315950,1713887365225,-546.55,0.00019178,2]
[323315951,1713887365246,-500.0,0.00019178,2]
[323315952,1713887365266,-1149.06,0.00019178,2]
[323315953,1713887365287,-500.0,0.00019178,2]
[323315954,1713887365307,-500.0,0.00019178,2]
[323315955,1713887365329,-500.0,0.00019178,2]
[323315956,1713887365352,-500.0,0.00019178,2]
[323315957,1713887365375,-500.0,0.00019178,2]
[323315958,1713887365398,-500.0,0.00019178,2]
[323315959,1713887365420,-1029.29,0.00019178,2]
[323315960,1713887365442,-629.73,0.00019178,2]
[323315961,1713887365462,-517.44,0.00019178,2]
[323315962,1713887365482,-500.0,0.00019178,2]
[323315963,1713887365503,-500.0,0.00019178,2]
[323315964,1713887365525,-593.22,0.00019178,2]
[323315965,1713887365545,-500.0,0.00019178,2]
[323315966,1713887365566,-500.0,0.00019178,2]
[323315967,1713887365586,-500.0,0.00019178,2]
[323315968,1713887365608,-500.0,0.00019178,2]
[323315969,1713887365631,-200.96345925,0.00019178,2]
[323315970,1713887365651,-398.72465794,0.00019178,2]
[323315971,1713887365672,-500.0,0.00019178,2]
[323315972,1713887365692,-500.0,0.00019178,2]
[323315973,1713887365712,-1138.59,0.00019178,2]
[323315974,1713887365732,-500.0,0.00019178,2]
[323315975,1713887365752,-500.0,0.00019178,2]
[323315976,1713887365773,-500.0,0.00019178,2]
[323315977,1713887365794,-866.76,0.00019178,2]
[323315978,1713887365817,-791.32,0.00019178,2]
[323315979,1713887365838,-237.4846105,0.00019178,2]
[323315980,1713887365858,-500.0,0.00019178,2]
[323315981,1713887365882,-500.0,0.00019178,2]
[323315982,1713887365902,-958.94,0.00019178,2]
[323315983,1713887365923,-500.0,0.00019178,2]
[323315984,1713887365944,-500.0,0.00019178,2]
[323315985,1713887365964,-500.0,0.00019178,2]
[323315986,1713887365985,-500.0,0.00019178,2]
[323315987,1713887366006,-500.0,0.00019178,2]
[323315988,1713887366026,-551.22,0.00019178,2]
[323315989,1713887366047,-500.0,0.00019178,2]
[323315990,1713887366068,-500.0,0.00019178,2]
[323315991,1713887366088,-500.0,0.00019178,2]
[323315992,1713887366110,-654.85,0.00019178,2]
[323315993,1713887366134,-6597.98,0.00019178,2]
[323315994,1713887366154,-500.0,0.00019178,2]
[323315995,1713887366175,-500.0,0.00019178,2]
[323315996,1713887366195,-500.0,0.00019178,2]
[323315997,1713887366216,-535.26,0.00019178,2]
[323315998,1713887366236,-500.0,0.00019178,2]
[323315999,1713887366257,-500.0,0.00019178,2]
[323316000,1713887366277,-500.0,0.00019178,2]
[323316001,1713887366297,-680.04,0.00019178,2]
[323316002,1713887366318,-500.0,0.00019178,2]
[323316003,1713887366339,-500.0,0.00019178,2]
[323316004,1713887366365,-500.0,0.00019178,2]
[323316005,1713887366386,-486.93249255,0.00019178,2]
[323316006,1713887366407,-500.0,0.00019178,2]
[323316007,1713887366427,-500.0,0.00019178,2]
[323316008,1713887366448,-977.27,0.00019178,2]
[323316009,1713887366470,-500.0,0.00019178,2]
[323316010,1713887366490,-5448.52,0.00019178,2]
[323316011,1713887366510,-993.73,0.00019178,2]
[323316012,1713887366529,-1016.65,0.00019178,2]
[323316013,1713887366549,-1012.75,0.00019178,2]
[323316014,1713887366569,-500.0,0.00019178,2]
[323316015,1713887366588,-500.0,0.00019178,2]
[323316016,1713887366608,-586.12,0.00019178,2]
[323316017,1713887366632,-555.33,0.00019178,2]
[323316018,1713887366652,-500.0,0.00019178,2]
[323316019,1713887366671,-500.0,0.00019178,2]
[323316020,1713887366691,-500.0,0.00019178,2]
[323316021,1713887366712,-7294.12,0.00019178,2]
[323316022,1713887366733,-500.0,0.00019178,2]
[323316023,1713887366755,-500.0,0.00019178,2]
[323316024,1713887366775,-3461.97,0.00019178,2]
[323316025,1713887366795,-500.0,0.00019178,2]
[323316026,1713887366815,-500.0,0.00019178,2]
[323316027,1713887366835,-500.0,0.00019178,2]
[323316028,1713887366856,-500.0,0.00019178,2]
[323316029,1713887366878,-739.4,0.00019178,2]
[323316030,1713887366898,-500.0,0.00019178,2]
[323316031,1713887366921,-500.0,0.00019178,2]
[323316032,1713887366941,-1814.6,0.00019178,2]
[323316033,1713887366961,-2627.79,0.00019178,2]
[323316034,1713887366980,-500.0,0.00019178,2]
[323316035,1713887366999,-500.0,0.00019178,2]
[323316036,1713887367115,-500.0,0.00019178,2]
[323316037,1713887367143,-500.0,0.00019178,2]
[323316038,1713887367163,-247.45506757,0.00019178,2]
[323316039,1713887367183,-500.0,0.00019178,2]
[323316040,1713887367204,-5967.64,0.00019178,2]
[323316041,1713887367224,-1157.52,0.00019178,2]
[323316042,1713887367244,-764.16,0.00019178,2]
[323316043,1713887367265,-500.0,0.00019178,2]
[323316044,1713887367284,-500.0,0.00019178,2]
[323316045,1713887367304,-500.0,0.00019178,2]
[323316046,1713887367325,-500.0,0.00019178,2]
[323316047,1713887367345,-500.0,0.00019178,2]
[323316048,1713887367371,-500.0,0.00019178,2]
[323316049,1713887367392,-500.0,0.00019178,2]
[323316050,1713887367411,-500.0,0.00019178,2]
[323316051,1713887367433,-500.0,0.00019178,2]
[323316052,1713887367454,-500.0,0.00019178,2]
[323316053,1713887367474,-500.0,0.00019178,2]
[323316054,1713887367494,-500.0,0.00019178,2]
[323316055,1713887367515,-19746.81,0.00019178,2]
[323316056,1713887367535,-500.0,0.00019178,2]
[323316057,1713887367557,-500.0,0.00019178,2]
[323316058,1713887367578,-500.0,0.00019178,2]
[323316059,1713887367599,-504.87,0.00019178,2]
[323316060,1713887367621,-913.27,0.00019178,2]
[323316061,1713887367642,-500.0,0.00019178,2]
[323316062,1713887367664,-1246.72,0.00019178,2]
[323316063,1713887367685,-500.0,0.00019178,2]
[323316064,1713887367705,-510.27205363,0.00019178,2]
[323316065,1713887367725,-583.5,0.00019178,2]
[323316066,1713887367747,-3056.48,0.00019178,2]
[323316067,1713887367769,-388.55794728,0.00019178,2]
[323316068,1713887367790,-3304.97,0.00019178,2]
[323316069,1713887367810,-500.0,0.00019178,2]
[323316070,1713887367831,-288.71947098,0.00019178,2]
[323316071,1713887367851,-500.0,0.00019178,2]
[323316072,1713887367874,-500.0,0.00019178,2]
[323316073,1713887367894,-500.0,0.00019178,2]
[323316074,1713887367915,-500.0,0.00019178,2]
[323316075,1713887367937,-3072.94,0.00019178,2]
[323316076,1713887367962,-423.47435075,0.00019178,2]
[323316077,1713887367985,-1670.74,0.00019178,2]
[323316078,1713887368006,-500.0,0.00019178,2]
[323316079,1713887368027,-500.0,0.00019178,2]
[323316080,1713887368049,-561.96,0.00019178,2]
[323316081,1713887368070,-500.0,0.00019178,2]
[323316082,1713887368091,-500.0,0.00019178,2]
[323316083,1713887368115,-500.0,0.00019178,2]
[323316084,1713887368135,-500.0,0.00019178,2]
[323316085,1713887368156,-500.0,0.00019178,2]
[323316086,1713887368176,-500.0,0.00019178,2]
[323316087,1713887368197,-518.33017643,0.00019178,2]
[323316088,1713887368218,-500.0,0.00019178,2]
[323316089,1713887368238,-500.0,0.00019178,2]
[323316090,1713887368258,-500.0,0.00019178,2]
[323316091,1713887368279,-500.0,0.00019178,2]
[323316092,1713887368300,-500.0,0.00019178,2]
[323316093,1713887368320,-500.0,0.00019178,2]
[323316094,1713887368341,-500.0,0.00019178,2]
[323316095,1713887368367,-500.0,0.00019178,2]
[323316096,1713887368387,-508.80885748,0.00019178,2]
[323316097,1713887368407,-3791.98,0.00019178,2]
[323316098,1713887368427,-500.0,0.00019178,2]
[323316099,1713887368449,-500.0,0.00019178,2]
[323316100,1713887368469,-567.37810752,0.00019178,2]
[323316101,1713887368490,-380.70343318,0.00019178,2]
[323316102,1713887368510,-162.73458,0.00019178,2]
[323316103,1713887368530,-185.17373172,0.00019352,2]
[323316104,1713887368550,-44444.0,0.00019352,2]
[323316105,1713887368571,-1152.0,0.00019426,2]
[323316106,1713887368592,-500.0,0.0001945,2]
[323316107,1713887368619,-500.0,0.0001945,2]